[Event "Ceske Budejovice IM 2022"]
[Site "Ceske Budejovice"]
[Date "2022.07.05"]
[Round "5.4"]
[White "Plischki, Sebastian"]
[Black "Dev, Shah"]
[Result "1/2-1/2"]
[ECO "D02"]
[WhiteElo "2384"]
[BlackElo "2292"]
[Annotator "TA"]
[PlyCount "116"]
[EventDate "2022.07.01"]
[EventType "tourn"]
[EventCountry "CZE"]
[SourceTitle "playchess.com"]
[Source "ChessBase"]
[SourceQuality "1"]
[TimeControl "40/5400+30:1800+30"]

{[%evp 11,116,0,0,0,0,0,0,0,0,0,0,0,0,0,0,0,0,0,0,-12,-5,-76,-77,-79,-40,-51,-55,-94,-90,-91,-79,-79,-26,-91,-21,-18,0,-56,-27,-102,-113,-86,-83,-77,-29,-30,0,0,0,0,0,0,0,0,0,0,59,41,99,33,58,54,117,125,116,105,196,190,202,189,183,85,58,77,220,185,142,142,187,0,6,0,45,0,211,0,0,0,0,0,0,0,0,0,0,0,0,0,0,0,0,0,0,0,0,0,0]} 1. d4 {[%emt 0:00:02]} d5 {[%emt 0:01:01]} 2. Nf3 {[%emt 0:00:09]} Nf6 {[%emt 0:00:04]} 3. g3 {[%emt 0:00:12]} Bf5 {[%emt 0:00:06]} 4. Bg2 {[%emt 0:00:36]} e6 {[%emt 0:00:05]} 5. c4 {[%emt 0:00:17]} c6 {[%emt 0:00:04]} 6. Nc3 {[%emt 0:00:10]} h6 {[%emt 0:00:23]} 7. Qb3 {[%emt 0:00:33] D11: Slav Defence: 3 Nf3 sidelines and 3...Nf6 4 e3 Bg4.} Qb6 {[%emt 0:00:05]} 8. c5 {[%emt 0:00:14]} Qxb3 {[%emt 0:00:05]} 9. axb3 {[%emt 0:00:05]} Be7 {[%emt 0:00:48]} 10. b4 {[%emt 0:00:23] 10.h3 gains popularity.} O-O {[%emt 0:00:25]} 11. Bf4 {[%emt 0:02:27]} a6 {[%emt 0:11:33]} 12. h3 {[%emt 0:02:57] [#]} g5 $146 {[%emt 0:03:28]} ({Predecessor:} 12... Bh7 13. g4 Ne4 14. Ne5 f6 15. Nd3 Nd7 16. f3 Ng5 17. e4 e5 18. Be3 Ne6 {0-1 (46) Liess,A (1915)-Ludvik,T (2212) Pardubice 2021}) 13. Be5 {[%emt 0:03:37]} Nbd7 {[%emt 0:00:46]} 14. g4 {[%emt 0:00:45]} Bg6 {[%emt 0:00:52]} 15. Bh2 {[%emt 0:01:04]} Ne4 {[%emt 0:05:43]} 16. Nd2 {[%emt 0:11:26]} (16. e3 $11) 16... Nxd2 $17 {[%emt 0:14:23]} 17. Kxd2 {[%emt 0:00:08]} f5 {[%emt 0:06:15]} (17... e5 {looks sharper.} 18. e3 exd4 19. exd4 Bf6) 18. gxf5 $1 {[%emt 0:03:24]} Rxf5 {[%emt 0:00:15]} 19. Rhf1 {[%emt 0:09:06]} Raf8 {[%emt 0:02:49]} 20. Bg3 {[%emt 0:08:54]} R5f7 {[%emt 0:03:55]} 21. e3 {[%emt 0:05:26]} Nf6 {[%emt 0:02:43]} (21... Bf6 $17) 22. Ke2 {[%emt 0:08:26]} (22. f3 $11 {keeps the balance.}) 22... Ne4 {[%emt 0:03:16]} (22... Nh5 $17 {[%cal Oh5f4] Hoping for ...Nf4+!} 23. Be5 Bf6) 23. Nxe4 $11 {[%emt 0:04:32]} dxe4 {[%emt 0:00:16]} 24. b5 {[%emt 0:06:03]} (24. Rg1 $11) 24... cxb5 {[%emt 0:04:38]} 25. c6 {[%emt 0:03:05]} (25. Ke1 $11) 25... Bh5+ $1 $17 {[%emt 0:04:08]} (25... bxc6 $6 26. Rxa6 Bh5+ 27. Kd2 $15) 26. Kd2 {[%emt 0:00:44]} Bb4+ {[%emt 0:00:10]} (26... bxc6 27. Bxe4 a5 28. Bxc6 $14) 27. Kc2 {[%emt 0:01:26][%cal Bd2c2,Bc2d3,Bd3e2][%mdl 32]} bxc6 {[%emt 0:04:19]} (27... Be2 $17 28. Rfc1 bxc6 29. Bxe4 a5) 28. Bxe4 $11 {[%emt 0:02:03]} Bf3 {[%emt 0:01:00]} 29. Kd3 {[%emt 0:04:12]} a5 {[%emt 0:19:08]} 30. Bxf3 {[%emt 0:04:52]} Rxf3 {[%emt 0:00:19]} 31. Rfc1 {[%emt 0:04:31]} Rc8 {[%emt 0:02:14]} 32. Rc2 {[%emt 0:02:43]} Rf5 {[%emt 0:03:04]} 33. Ke2 {[%emt 0:02:31]} h5 {[%emt 0:06:05]} ({Black should play} 33... Rd5 $11) 34. Rac1 $14 {[%emt 0:05:12]} Rcf8 {[%emt 0:00:42]} ({Black should try} 34... c5 $14) 35. h4 {[%emt 0:01:01]} (35. Rxc6 $16 h4 36. Be5 (36. e4 $2 R5f7 $19) 36... Rxf2+ 37. Kd3) 35... gxh4 {[%emt 0:01:13]} 36. Bxh4 {[%emt 0:00:06]} e5 {[%emt 0:00:08]} (36... Rc8 $1 $14) 37. dxe5 $1 $16 {[%emt 0:00:52]} Rxe5 {[%emt 0:00:09]} 38. Rxc6 {[%emt 0:00:48]} Rf7 {[%emt 0:02:22] [#]} (38... Re4 $16) 39. f4 $1 $18 {[%emt 0:03:05]} Rd5 {[%emt 0:00:27]} 40. Bf6 {[%emt 0:00:57]} Rd6 {[%emt 0:00:31]} 41. Be5 {[%emt 0:02:47]} (41. Rc8+ $18 {has better winning chances.} Rf8 42. Bd4) 41... Rxc6 $16 {[%emt 0:01:59]} 42. Rxc6 {[%emt 0:00:07][%mdl 4096] Endgame Rg6+ is the strong threat. KRB-KRB} Rb7 {[%emt 0:04:13]} (42... Rh7 $16 {was called for.}) 43. Kf3 {[%emt 0:01:55]} Bf8 {[%emt 0:00:32]} 44. f5 {[%emt 0:01:27] White is more active.} a4 {[%emt 0:00:42]} 45. Ra6 $2 {[%emt 0:00:38]} (45. e4 $18) 45... h4 $1 $11 {[%emt 0:04:16]} 46. Kg4 {[%emt 0:02:42]} Bc5 {[%emt 0:03:08]} 47. Bf4 {[%emt 0:11:13]} (47. f6 $5 {[%cal Rg4f5]}) 47... Re7 $2 {[%emt 0:04:37] [#]} (47... Rg7+ $11 {and Black has nothing to worry.} 48. Kf3 (48. Kxh4 Rg2 $16) 48... Ra7) 48. Kf3 $2 {[%emt 0:08:30]} ({And not} 48. Kxh4 Bxe3 49. Bxe3 Rxe3 $11) (48. f6 $1 $18 {[%cal Rf6e7]} Rh7 49. Rc6 (49. Ra5 h3 $11)) 48... h3 {[%emt 0:00:22] The position is equal.} 49. Rh6 {[%emt 0:02:26]} Rh7 {[%emt 0:00:52] And now ...Rxh6 would win.} 50. Rc6 {[%emt 0:00:56]} h2 {[%emt 0:00:26]} 51. Bxh2 {[%emt 0:00:08]} Rxh2 {[%emt 0:00:01]} 52. Rxc5 {[%emt 0:00:08]} Rxb2 {[%emt 0:00:02] Threatens to win with ...a3. KR-KR} 53. Rc8+ {[%emt 0:00:48]} Kg7 {[%emt 0:02:16]} 54. Ra8 {[%emt 0:00:04]} Kf6 {[%emt 0:03:11]} 55. Kf4 {[%emt 0:00:49] aiming for Ra6+.} Rf2+ {[%emt 0:00:23]} 56. Ke4 {[%emt 0:00:05]} a3 {[%emt 0:01:02]} 57. Ra6+ {[%emt 0:00:47]} Kg5 {[%emt 0:00:06]} 58. Rxa3 {[%emt 0:01:16]} Rxf5 {[%emt 0:00:09] Blacks defense is rewarded with a draw.  Weighted Error Value: White=0.27 (precise) /Black=0.24 (precise)} 1/2-1/2

[Event "Ceske Budejovice IM 2022"]
[Site "Ceske Budejovice"]
[Date "2022.07.05"]
[Round "5.5"]
[White "Svanda, Ondrej"]
[Black "Bochnicka, Vladimir"]
[Result "1/2-1/2"]
[ECO "A04"]
[WhiteElo "2363"]
[BlackElo "2295"]
[Annotator "TA"]
[PlyCount "50"]
[EventDate "2022.07.01"]
[EventType "tourn"]
[EventCountry "CZE"]
[SourceTitle "playchess.com"]
[Source "ChessBase"]
[SourceQuality "1"]
[TimeControl "40/5400+30:1800+30"]

{[%evp 20,50,0,-13,0,-26,25,29,24,9,29,29,29,29,29,25,29,29,29,29,29,27,34,37,43,11,43,20,24,34,35,0,61]} 1. Nf3 {[%emt 0:00:05]} c5 {[%emt 0:00:06]} 2. c4 {[%emt 0:02:03]} Nc6 {[%emt 0:01:08]} 3. g3 {[%emt 0:00:38]} g6 {[%emt 0:00:13]} 4. Bg2 {[%emt 0:00:06]} Bg7 {[%emt 0:00:03]} 5. O-O {[%emt 0:00:07]} e5 {[%emt 0:00:24]} 6. Nc3 {[%emt 0:00:34]} d6 {[%emt 0:00:38]} 7. Ne1 {[%emt 0:01:07]} Be6 {[%emt 0:00:49]} 8. Nd5 {[%emt 0:00:31]} Nge7 {[%emt 0:02:12]} 9. Nc2 {[%emt 0:00:34]} O-O {[%emt 0:02:15]} 10. a3 {[%emt 0:05:36]} a5 {[%emt 0:04:29]} 11. Rb1 {[%emt 0:01:42]} a4 {[%emt 0:09:04] A37: Symmetrical English vs ...g6: 4 Bg2 Bg7 5 Nf3.} 12. Nce3 {[%emt 0:07:59]} Nd4 {[%emt 0:08:04]} (12... f5 $142) 13. Nxe7+ $11 {[%emt 0:08:38]} Qxe7 {[%emt 0:00:05] White has an edge.} 14. Nd5 {[%emt 0:00:06]} Bxd5 {[%emt 0:05:51]} 15. Bxd5 {[%emt 0:00:03]} Nb3 {[%emt 0:01:04]} 16. d3 {[%emt 0:01:20]} Kh8 {[%emt 0:05:18] [#]} 17. Bd2 $146 {[%emt 0:02:32]} ({Predecessor:} 17. e4 f5 18. exf5 Rxf5 19. Be4 Rf7 20. Be3 Qf8 21. Qg4 Bh6 22. Bd5 Rf5 23. Be4 {½-½ (43) Mikrut,D (2369)-Skalski,M (2204) Poraj 2003}) 17... f5 {[%emt 0:16:37]} 18. e3 {[%emt 0:00:06]} Qd7 {[%emt 0:11:35]} 19. Bc3 {[%emt 0:02:52]} Rab8 {[%emt 0:02:47]} 20. Qe2 {[%emt 0:22:26]} Rbe8 {[%emt 0:13:33]} 21. Rbe1 {[%emt 0:00:55]} b5 {[%emt 0:02:43]} 22. Qd1 {[%emt 0:04:03]} Rb8 {[%emt 0:04:59]} 23. cxb5 $1 {[%emt 0:00:40]} Qxb5 {[%emt 0:00:19]} 24. f4 {[%emt 0:01:10]} Qd7 {[%emt 0:03:43]} 25. h4 {[%emt 0:02:13]} Rfe8 {[%emt 0:01:59] Weighted Error Value: White=0.08 (flawless) /Black=0.13 (very precise)} ({Black should play} 25... exf4 $11 26. gxf4 Bxc3 27. bxc3 Qe7) 1/2-1/2

[Event "Ceske Budejovice IM 2022"]
[Site "Ceske Budejovice"]
[Date "2022.07.06"]
[Round "6.1"]
[White "Gretarsson, Helgi Ass"]
[Black "Bochnicka, Vladimir"]
[Result "1/2-1/2"]
[ECO "A21"]
[WhiteElo "2472"]
[BlackElo "2295"]
[Annotator "TA"]
[PlyCount "132"]
[EventDate "2022.07.01"]
[EventType "tourn"]
[EventCountry "CZE"]
[SourceTitle "playchess.com"]
[Source "ChessBase"]
[SourceQuality "1"]
[TimeControl "40/5400+30:1800+30"]

{[%evp 9,132,18,18,18,18,20,20,12,55,54,45,31,54,48,57,41,40,42,49,29,40,43,53,27,47,59,55,55,72,73,54,72,88,59,54,54,81,76,77,66,93,54,93,65,116,98,118,92,99,93,137,137,137,137,141,137,127,127,168,174,166,172,162,168,282,177,233,233,233,233,243,240,240,238,216,184,184,184,184,179,169,166,762,731,1347,1335,1839,1728,2054,1752,2489,2234,5265,4642,4908,3455,2122,451,448,439,6207,6187,2413,2109,29968,29971,29968,29970,29963,29971,29964,8,8,8,8,8,8,8,8,8,8,8,8,8,29980]} 1. c4 {[%emt 0:00:01]} e5 {[%emt 0:00:08]} 2. Nc3 {[%emt 0:00:06]} Bb4 {[%emt 0:00:05]} 3. Nd5 {[%emt 0:00:25]} Be7 {[%emt 0:00:08]} 4. d4 {[%emt 0:05:41]} exd4 {[%emt 0:00:20]} 5. Qxd4 {[%emt 0:02:41]} Nf6 {[%emt 0:01:29][%cal Bg8f6,Bf6e4,Be4c3][%mdl 32]} 6. Nxe7 {[%emt 0:12:59] A21: English Opening: 1...e5 2 Nc3.} Qxe7 {[%emt 0:00:47]} 7. Bg5 {[%emt 0:00:04]} Nc6 {[%emt 0:08:50]} 8. Qc3 {[%emt 0:00:12]} Ne4 {[%emt 0:08:52]} 9. Bxe7 {[%emt 0:00:15]} Nxc3 {[%emt 0:00:05] Pair of Knights!} 10. Ba3 {[%emt 0:04:09]} Ne4 {[%emt 0:03:01]} 11. f3 {[%emt 0:00:24]} Nf6 {[%emt 0:02:31]} 12. e4 {[%emt 0:00:08]} d6 {[%emt 0:01:31]} 13. Ne2 {[%emt 0:00:34] [#]} Bd7 $146 {[%emt 0:15:37]} ({Predecessor:} 13... Be6 14. Nc3 O-O-O 15. O-O-O Nd7 16. b3 g5 17. Bd3 Nde5 18. Bc2 h5 19. h4 gxh4 20. Rxh4 {1-0 (53) Landa,K (2621)-Engel,L (2519) Germany 2020}) 14. O-O-O {[%emt 0:04:34]} O-O-O {[%emt 0:00:28]} 15. b3 {[%emt 0:01:02]} Ng8 {[%emt 0:10:14]} 16. g4 {[%emt 0:12:01]} Nge7 {[%emt 0:18:13]} 17. Ng3 {[%emt 0:16:42]} Ne5 {[%emt 0:06:01]} 18. Be2 {[%emt 0:00:18]} g5 {[%emt 0:02:37]} 19. c5 {[%emt 0:00:09]} dxc5 {[%emt 0:02:32]} 20. Bxc5 {[%emt 0:00:02]} N7c6 {[%emt 0:01:07]} 21. Kb2 {[%emt 0:12:42]} Ng6 {[%emt 0:01:38]} 22. Nh5 {[%emt 0:01:22]} Be6 {[%emt 0:00:56]} 23. Be3 {[%emt 0:09:06]} h6 {[%emt 0:00:22]} 24. Kc3 {[%emt 0:00:28]} a6 {[%emt 0:05:37]} 25. h3 {[%emt 0:01:24]} Rxd1 {[%emt 0:04:43]} 26. Rxd1 {[%emt 0:00:29]} Nce7 {[%emt 0:03:30]} (26... Bd7 $14) 27. Bd4 {[%emt 0:01:25] And now f4 would win. White is more active.} Rd8 {[%emt 0:00:23]} 28. Rd2 {[%emt 0:05:15]} Rd6 {[%emt 0:01:14]} 29. Bg7 {[%emt 0:00:40] Threatens to win with Rxd6.} (29. Bd1 {looks sharper.} Bd7 30. Bg7 Ng8 31. Bc2) 29... Rxd2 {[%emt 0:00:47]} 30. Kxd2 {[%emt 0:00:02]} Ng8 {[%emt 0:00:05]} 31. Ke3 {[%emt 0:02:55]} Kd7 {[%emt 0:00:32]} 32. f4 {[%emt 0:04:03]} gxf4+ {[%emt 0:00:04]} 33. Nxf4 {[%emt 0:00:01]} Ke7 {[%emt 0:01:00]} 34. e5 {[%emt 0:02:11][%cal Be4e5,Be5f6][%mdl 32]} c5 {[%emt 0:00:44]} 35. Nh5 {[%emt 0:02:04]} Bd5 {[%emt 0:00:50]} 36. Bd3 {[%emt 0:00:55]} Ke6 {[%emt 0:00:24]} (36... b5 $142 37. Nf4 Nxf4 38. Kxf4 Be6) 37. Bf5+ {[%emt 0:00:08]} Ke7 {[%emt 0:00:05]} 38. Nf6 {[%emt 0:00:10]} Nxf6 {[%emt 0:00:32]} 39. exf6+ $18 {[%emt 0:00:06][%mdl 4096] Endgame KBB-KBN} Kd6 {[%emt 0:00:04]} 40. Bxh6 {[%emt 0:00:16] aiming for Bf4+.} Ke5 {[%emt 0:01:06] Inhibits Bf4+.} 41. Bg5 {[%emt 0:03:51] Against Nh4} Nf8 {[%emt 0:03:41]} 42. h4 {[%emt 0:06:23] Strongly threatening Bh6.} Ne6 {[%emt 0:02:30]} 43. Bh6 {[%emt 0:08:43] Hoping for h5.} Kxf6 {[%emt 0:03:20]} 44. Bb1 {[%emt 0:00:06]} Ke5 {[%emt 0:15:17]} 45. g5 {[%emt 0:00:33][%cal Bg4g5,Bg5g6][%mdl 32]} f5 $2 {[%emt 0:06:00]} (45... f6) 46. h5 {[%emt 0:01:48]} f4+ {[%emt 0:01:38]} 47. Kf2 {[%emt 0:00:32]} f3 {[%emt 0:00:04] [#]} 48. Bg7+ $1 {[%emt 0:00:59][%mdl 512]} Kf4 {[%emt 0:00:05] [#]} (48... Nxg7 49. h6) 49. g6 $1 {[%emt 0:00:33]} Ng5 {[%emt 0:02:09]} (49... Nxg7 50. h6) 50. h6 {[%emt 0:01:51]} Bc6 {[%emt 0:00:40]} 51. a4 {[%emt 0:01:07]} ({Inferior is} 51. h7 Nh3+ 52. Kf1 Bb5+ 53. Ke1 f2+ 54. Kd2 f1=Q $11) 51... Be4 {[%emt 0:00:34] [#]} 52. Be5+ $1 {[%emt 0:03:01][%mdl 512]} Kxe5 {[%emt 0:00:32]} (52... Kg4 53. Bxe4) 53. h7 {[%emt 0:00:10]} (53. Bxe4 $142 Nxe4+ 54. Kxf3) 53... Nxh7 {[%emt 0:00:10] [#]} 54. Bxe4 $1 {[%emt 0:01:59] KB-KN} ({Worse is} 54. gxh7 Bxh7 55. Bxh7 Kd4 $11) 54... Ng5 {[%emt 0:00:32]} (54... Nf6 $142 55. Bxb7 a5 56. Kxf3 Kf5) 55. Bxb7 {[%emt 0:00:13] Threatening mate with g7.} Kf6 {[%emt 0:00:36]} 56. Bxa6 {[%emt 0:00:40] White wants to mate with Bd3.} Kxg6 {[%emt 0:00:37]} 57. Bb7 {[%emt 0:00:09]} Ne6 {[%emt 0:00:17]} 58. a5 {[%emt 0:00:04][%cal Ba4a5,Ba5a6][%mdl 32]} Nd4 {[%emt 0:00:13]} 59. a6 {[%emt 0:00:31]} Nb5 {[%emt 0:00:03]} 60. Kxf3 $2 {[%emt 0:00:11]} (60. Bc6 {mates} Na7 61. Bxf3 Kf6 62. Ke3 Ke7 63. Kd3 Kd6 64. Kc4 Kc7 65. Kxc5) 60... Kf5 $11 {[%emt 0:00:28] The position is equal.} 61. Ke3 {[%emt 0:05:09] White threatens Kd3 and mate.} Ke5 {[%emt 0:00:08]} 62. Kd3 {[%emt 0:00:32]} (62. Bc6 $5 {[%cal Rc6b5]} Na7 63. Be8 $11) 62... Kd6 {[%emt 0:00:05]} 63. b4 {[%emt 0:01:16]} cxb4 {[%emt 0:00:10]} 64. Kc4 {[%emt 0:00:00][%csl LRb4,LRb5]} Nc7 {[%emt 0:00:36]} 65. a7 {[%emt 0:00:04]} b3 $1 {[%emt 0:00:08]} 66. Kxb3 {[%emt 0:01:07] Intending Kc4 and mate.} Ke5 $2 {[%mdl 40960] Weighted Error Value: White=0.36/Black=0.28 (precise) . An unexpected result.} (66... Kc5 $11) 1/2-1/2

[Event "Ceske Budejovice IM 2022"]
[Site "Ceske Budejovice"]
[Date "2022.07.06"]
[Round "6.2"]
[White "Dev, Shah"]
[Black "Svanda, Ondrej"]
[Result "0-1"]
[ECO "E46"]
[WhiteElo "2292"]
[BlackElo "2363"]
[Annotator "TA"]
[PlyCount "68"]
[EventDate "2022.07.01"]
[EventType "tourn"]
[EventCountry "CZE"]
[SourceTitle "playchess.com"]
[Source "ChessBase"]
[SourceQuality "1"]
[TimeControl "40/5400+30:1800+30"]

{[%evp 13,68,-10,-8,-7,-2,-4,14,9,22,27,32,43,43,0,0,-53,-37,-74,-52,-196,-190,-195,-199,-279,-291,-294,-210,-253,-258,-253,-245,-282,-281,-317,-289,-311,-317,-380,-378,-354,-284,-264,-263,-310,-277,-528,-529,-519,-521,-706,-592,-1029,-995,-5822,-5577,-1916,-1448]} 1. d4 {[%emt 0:00:36]} Nf6 {[%emt 0:00:07]} 2. c4 {[%emt 0:00:04]} e6 {[%emt 0:00:03]} 3. Nc3 {[%emt 0:00:13]} Bb4 {[%emt 0:00:09]} 4. e3 {[%emt 0:00:08]} O-O {[%emt 0:00:32]} 5. Bd2 {[%emt 0:00:05]} d5 {[%emt 0:01:36]} 6. Nf3 {[%emt 0:00:55]} b6 {[%emt 0:00:15]} 7. cxd5 {[%emt 0:00:35]} exd5 {[%emt 0:00:03]} 8. Ne5 {[%emt 0:02:00] E51: Nimzo-Indian: Rubinstein: 4...0-0 5 Nf3 d5.} Bb7 {[%emt 0:08:19]} 9. Bd3 {[%emt 0:02:36]} Re8 {[%emt 0:00:52]} 10. O-O {[%emt 0:01:06] The position is equal.} Bf8 {[%emt 0:05:50]} 11. f4 {[%emt 0:02:49]} c5 $1 {[%emt 0:02:39]} 12. Be1 {[%emt 0:12:30]} Nc6 {[%emt 0:18:45] [#]} 13. Bh4 $146 {[%emt 0:11:52]} ({Predecessor:} 13. Bb5 Re6 14. Bh4 cxd4 15. Bxc6 Bxc6 16. exd4 Bb7 17. f5 Re8 18. Qf3 Be7 19. Qh3 {0-1 (42) Shankland,S (2709)-Caruana,F (2806) Saint Louis 2021}) 13... cxd4 {[%emt 0:06:27]} 14. Bxf6 {[%emt 0:07:56]} (14. exd4 $11 Nxd4 15. Rc1) 14... Qxf6 $15 {[%emt 0:01:55]} 15. Nxd5 {[%emt 0:00:09]} Qh6 {[%emt 0:15:29]} 16. Ng4 {[%emt 0:11:58] This move loses the game for White.} (16. Bc4 $1 $15 Na5 17. Nf6+ (17. Qxd4 Bc5 $17) 17... gxf6 18. Nxf7) 16... Qd6 $19 {[%emt 0:07:13]} 17. e4 {[%emt 0:03:35] [#]} f5 $1 {[%emt 0:13:16]} 18. Qb3 {[%emt 0:03:11]} (18. Nf2 {keeps fighting.} Na5 19. Qh5) 18... Kh8 {[%emt 0:00:01]} 19. e5 {[%emt 0:01:15]} Qe6 {[%emt 0:01:46] ...Na5 is the strong threat.} 20. Nc7 {[%emt 0:04:40]} Qxb3 {[%emt 0:00:12]} 21. axb3 {[%emt 0:00:05]} fxg4 {[%emt 0:00:04]} 22. Nxe8 {[%emt 0:03:59]} Rxe8 {[%emt 0:00:01]} 23. Bf5 {[%emt 0:00:40]} a5 {[%emt 0:06:48]} 24. Bxg4 {[%emt 0:00:36]} Nb4 {[%emt 0:00:34]} 25. Bd7 {[%emt 0:03:20]} Rd8 {[%emt 0:00:00]} 26. e6 {[%emt 0:00:31]} Bc8 {[%emt 0:01:04]} 27. Bxc8 {[%emt 0:01:07]} Rxc8 {[%emt 0:00:00]} 28. f5 {[%emt 0:01:50]} Bc5 {[%emt 0:01:59]} 29. f6 $2 {[%emt 0:00:48]} (29. Kf2) 29... d3+ {[%emt 0:00:50][%cal Bd4d3,Bd3d2][%mdl 32] Black is clearly winning.} 30. Kh1 {[%emt 0:00:02]} gxf6 {[%emt 0:00:08]} 31. Rxf6 {[%emt 0:00:03]} Be7 {[%emt 0:03:23]} 32. Rf7 {[%emt 0:00:55] [#]} d2 $1 {[%emt 0:02:35]} 33. Rd1 {[%emt 0:00:19]} (33. Rff1 Nc2) 33... Rc1 {[%emt 0:00:01]} 34. Rff1 {[%emt 0:00:01]} Nd3 {[%emt 0:00:08] Weighted Error Value: White=0.73/Black=0.13 (very precise)} 0-1

[Event "Ceske Budejovice IM 2022"]
[Site "Ceske Budejovice"]
[Date "2022.07.06"]
[Round "6.3"]
[White "Nagy, Ladislav"]
[Black "Plischki, Sebastian"]
[Result "0-1"]
[ECO "B74"]
[WhiteElo "2209"]
[BlackElo "2384"]
[Annotator "TA"]
[PlyCount "90"]
[EventDate "2022.07.01"]
[EventType "tourn"]
[EventCountry "CZE"]
[SourceTitle "playchess.com"]
[Source "ChessBase"]
[SourceQuality "1"]
[TimeControl "40/5400+30:1800+30"]

{[%evp 20,90,4,0,0,-23,0,0,0,-19,6,0,21,0,53,26,26,-18,-12,-12,-16,-46,-58,-28,0,0,-8,-19,7,0,58,0,0,-86,-75,-72,-87,-78,-87,-185,-186,-258,-271,-350,-331,-409,-378,-374,-306,-465,-452,-539,-515,-526,-499,-727,-720,-707,-675,-849,-760,-1911,-1634,-2630,-1604,-29970,-29971,-29971,-29971,-29987,-29987,-29979,-29957]} 1. e4 {[%emt 0:00:06]} c5 {[%emt 0:00:11]} 2. Nf3 {[%emt 0:00:33]} d6 {[%emt 0:00:11]} 3. d4 {[%emt 0:01:19]} cxd4 {[%emt 0:00:10]} 4. Nxd4 {[%emt 0:01:17]} Nf6 {[%emt 0:00:25]} 5. Nc3 {[%emt 0:01:07]} Nc6 {[%emt 0:00:46]} 6. Be2 {[%emt 0:09:06]} g6 {[%emt 0:00:54]} 7. Be3 {[%emt 0:06:46]} Bg7 {[%emt 0:00:14]} 8. O-O {[%emt 0:02:23]} O-O {[%emt 0:00:22]} 9. Nb3 {[%emt 0:06:42]} Be6 {[%emt 0:01:40]} 10. f4 {[%emt 0:02:02]} Rc8 $1 {[%emt 0:02:16][%mdl 4] is more profitable than 10...Qc8 at the moment.} 11. Kh1 {[%emt 0:04:57]} a6 {[%emt 0:05:06] B74: Sicilian Dragon: Classical System with 9 Nb3.} 12. Nd4 {[%emt 0:09:51]} Nxd4 {[%emt 0:04:24]} 13. Bxd4 {[%emt 0:00:32]} Qa5 {[%emt 0:05:17] The position is equal.} 14. Bf3 {[%emt 0:06:32] [#]} Rc4 $146 {[%emt 0:05:04]} ({Predecessor:} 14... Rfd8 15. Nd5 Nxd5 16. Bxg7 Ne3 17. Qd3 Kxg7 18. Qxe3 Rxc2 19. f5 Bd7 20. Qb3 Rc7 {1-0 (58) Rodrigues,L (2145)-Khaje Hesamedini,A (2249) Sao Paulo 2016}) 15. Ne2 {[%emt 0:03:30]} b5 {[%emt 0:06:40]} 16. c3 {[%emt 0:03:20]} Re8 {[%emt 0:04:28]} (16... Bg4 $11) 17. Ng3 {[%emt 0:04:21]} b4 {[%emt 0:05:16]} 18. b3 {[%emt 0:04:18]} Rxc3 {[%emt 0:01:30]} 19. Bxc3 {[%emt 0:00:21]} bxc3 {[%emt 0:00:06]} 20. h3 {[%emt 0:08:27]} Rc8 {[%emt 0:02:15][%mdl 1024] Threatens to win with ...c2. Black has compensation.} 21. Qc2 {[%emt 0:02:13]} Qc5 {[%emt 0:08:52]} 22. Be2 {[%emt 0:03:13]} a5 {[%emt 0:01:32]} 23. Rad1 {[%emt 0:01:51]} a4 {[%emt 0:05:17]} 24. bxa4 {[%emt 0:00:51]} Qa3 {[%emt 0:00:59]} ({Black should play} 24... Nd7 $11) 25. Ra1 {[%emt 0:01:31]} (25. Rc1 $14) 25... Nd7 $11 {[%emt 0:06:59]} 26. f5 {[%emt 0:03:27]} (26. Ba6 $11 Ra8 27. Bb5) 26... Bc4 $17 {[%emt 0:00:20] Black is more active. Black keeps a firm grip on the game.} 27. fxg6 {[%emt 0:04:37]} hxg6 {[%emt 0:00:41]} 28. Bxc4 {[%emt 0:00:32]} Rxc4 {[%emt 0:00:08]} 29. Qb3 {[%emt 0:00:48]} ({But not} 29. Qf2 $2 Ne5 30. a5 Qxa5 $19) (29. Rac1 $17) 29... Qxa4 $19 {[%emt 0:01:30]} 30. Qxa4 {[%emt 0:05:49]} (30. Rac1 $142) 30... Rxa4 {[%emt 0:00:05]} 31. Rf2 {[%emt 0:02:33]} Be5 {[%emt 0:04:42]} 32. Ne2 {[%emt 0:00:55]} Nc5 {[%emt 0:00:27]} 33. Rf3 {[%emt 0:00:37]} Nxe4 {[%emt 0:00:44] And now ...c2 would win.} 34. a3 {[%emt 0:00:26]} (34. Rc1 $142) 34... d5 {[%emt 0:01:54][%cal Bd6d5,Bd5d4][%mdl 32]} 35. Kg1 {[%emt 0:00:29]} d4 {[%emt 0:00:40]} 36. Nc1 {[%emt 0:00:27]} Nc5 {[%emt 0:00:41] Inhibits Nb3.} 37. Nd3 {[%emt 0:00:19]} (37. Ra2 $142) 37... Nxd3 {[%emt 0:00:07]} 38. Rxd3 {[%emt 0:00:02][%mdl 4096] Endgame KRR-KRB} Bd6 {[%emt 0:00:37]} 39. Ra2 {[%emt 0:00:51]} e5 {[%emt 0:00:55][%cal Be7e5,Be5e4,Be4e3,Be3e2][%mdl 32]} 40. Rd1 {[%emt 0:00:15]} e4 {[%emt 0:00:28]} 41. Kf2 {[%emt 0:30:38]} d3 {[%emt 0:30:24]} 42. Ke3 {[%emt 0:00:00]} Bc5+ {[%emt 0:00:00] Black mates.} 43. Kf4 {[%emt 0:00:00]} c2 {[%emt 0:00:00]} 44. Rda1 {[%emt 0:00:00]} e3+ {[%emt 0:00:00]} 45. Kf3 {[%emt 0:00:00]} e2 {[%emt 0:00:00] Weighted Error Value: White=0.82/Black=0.22 (precise)} 0-1